[Event "29. Klatovy A 2023"]
[Site "Klatovy"]
[Date "2023.07.03"]
[Round "3.11"]
[White "Stary, Lukas"]
[Black "Kopta, Pavel"]
[Result "1/2-1/2"]
[ECO "B07"]
[WhiteElo "1921"]
[BlackElo "2209"]
[PlyCount "55"]
[EventDate "2023.07.01"]
[EventType "swiss"]
[EventRounds "9"]
[EventCountry "CZE"]
[TimeControl "120+30"]

1. d4 {[%emt 0:00:03]} Nf6 {[%emt 0:00:09]} 2. Bf4 {[%emt 0:00:06]} g6 {[%emt 0:00:25]} 3. Nc3 {[%emt 0:00:07]} d6 {[%emt 0:07:48]} 4. e4 {[%emt 0:00:13]} Bg7 {[%emt 0:00:31]} 5. Qd2 {[%emt 0:00:06]} c6 {[%emt 0:01:14]} 6. Bh6 {[%emt 0:00:22]} Bxh6 {[%emt 0:07:30]} 7. Qxh6 {[%emt 0:00:02]} Qa5 {[%emt 0:00:40]} 8. f3 {[%emt 0:08:27]} b5 {[%emt 0:06:34]} 9. Qd2 {[%emt 0:09:14]} Nbd7 {[%emt 0:03:55]} 10. Nh3 {[%emt 0:09:18]} Nb6 {[%emt 0:05:30]} 11. Nf2 {[%emt 0:06:59]} Rb8 {[%emt 0:07:29]} 12. b3 {[%emt 0:04:13]} Nbd7 {[%emt 0:13:07]} 13. Bd3 {[%emt 0:03:13]} O-O {[%emt 0:04:28]} 14. Ne2 {[%emt 0:03:43]} Qxd2+ {[%emt 0:02:35]} 15. Kxd2 {[%emt 0:00:02]} e5 {[%emt 0:00:45]} 16. a4 {[%emt 0:03:13]} b4 {[%emt 0:01:22]} 17. f4 {[%emt 0:04:31]} exf4 {[%emt 0:03:20]} 18. Nxf4 {[%emt 0:00:39]} c5 {[%emt 0:00:11]} 19. d5 {[%emt 0:16:06]} Ne5 {[%emt 0:02:14]} 20. Nd1 {[%emt 0:02:56]} Re8 {[%emt 0:03:26]} 21. Re1 {[%emt 0:04:28]} g5 {[%emt 0:03:39]} 22. Ne2 {[%emt 0:01:00]} h5 {[%emt 0:09:54]} 23. Ng1 {[%emt 0:07:44]} Kg7 {[%emt 0:01:52]} 24. Nf3 {[%emt 0:02:07]} Kh6 {[%emt 0:04:26]} 25. Nxe5 {[%emt 0:00:51]} Rxe5 {[%emt 0:00:12]} 26. Nb2 {[%emt 0:01:43]} Re7 {[%emt 0:02:54]} 27. Nc4 {[%emt 0:01:16]} Rd7 {[%emt 0:03:19]} 28. Rf1 {[%emt 0:02:26]} 1/2-1/2

[Event "29. Klatovy A 2023"]
[Site "Klatovy"]
[Date "2023.07.03"]
[Round "3.12"]
[White "Novak, Vaclav2"]
[Black "Skypala, Ondrej"]
[Result "0-1"]
[ECO "B33"]
[WhiteElo "1948"]
[BlackElo "2163"]
[PlyCount "72"]
[EventDate "2023.07.01"]
[EventType "swiss"]
[EventRounds "9"]
[EventCountry "CZE"]
[TimeControl "120+30"]

1. e4 {[%emt 0:01:00]} c5 {[%emt 0:00:15]} 2. Nf3 {[%emt 0:00:06]} Nc6 {[%emt 0:00:12]} 3. d4 {[%emt 0:00:40]} cxd4 {[%emt 0:00:07]} 4. Nxd4 {[%emt 0:00:13]} Nf6 {[%emt 0:00:06]} 5. Nc3 {[%emt 0:00:10]} e5 {[%emt 0:00:09]} 6. Ndb5 {[%emt 0:00:26]} d6 {[%emt 0:00:08]} 7. Bg5 {[%emt 0:01:40]} a6 {[%emt 0:01:06]} 8. Bxf6 {[%emt 0:02:39]} gxf6 {[%emt 0:00:09]} 9. Na3 {[%emt 0:00:06]} b5 {[%emt 0:04:50]} 10. Nd5 {[%emt 0:03:20]} f5 {[%emt 0:04:31]} 11. Bd3 {[%emt 0:09:39]} Bg7 {[%emt 0:00:13]} 12. f3 {[%emt 0:03:29]} O-O {[%emt 0:03:36]} 13. O-O {[%emt 0:00:30]} Be6 {[%emt 0:06:25]} 14. c4 {[%emt 0:05:38]} bxc4 {[%emt 0:04:06]} 15. Bxc4 {[%emt 0:00:09]} Rb8 {[%emt 0:01:27]} 16. Rb1 {[%emt 0:01:42]} Kh8 {[%emt 0:04:58]} 17. Kh1 {[%emt 0:03:50]} fxe4 {[%emt 0:03:16]} 18. fxe4 {[%emt 0:00:17]} Qh4 {[%emt 0:00:43]} 19. Nc3 {[%emt 0:09:03]} Nd4 {[%emt 0:00:45]} 20. Qd3 {[%emt 0:07:37]} Bh6 {[%emt 0:04:25]} 21. b3 {[%emt 0:14:49]} Rg8 {[%emt 0:04:10]} 22. g3 {[%emt 0:08:46]} Qh3 {[%emt 0:05:23]} 23. Bxe6 {[%emt 0:02:28]} fxe6 {[%emt 0:00:06]} 24. Rf2 {[%emt 0:00:28]} Rbf8 {[%emt 0:02:14]} 25. Rbf1 {[%emt 0:00:43]} Rxf2 {[%emt 0:00:19]} 26. Rxf2 {[%emt 0:00:00]} Bf4 {[%emt 0:00:16]} 27. Rg2 {[%emt 0:02:05]} Rxg3 {[%emt 0:00:10]} 28. Rxg3 {[%emt 0:00:27]} Bxg3 {[%emt 0:00:06]} 29. Qxg3 {[%emt 0:03:55]} Qf1+ {[%emt 0:00:09]} 30. Qg1 {[%emt 0:00:10]} Qf3+ {[%emt 0:00:07]} 31. Qg2 {[%emt 0:00:06]} Qxc3 {[%emt 0:00:07]} 32. Qf2 {[%emt 0:03:25]} Qf3+ {[%emt 0:01:38]} 33. Qxf3 {[%emt 0:03:16]} Nxf3 {[%emt 0:00:08]} 34. Nc4 {[%emt 0:00:02]} d5 {[%emt 0:00:09]} 35. Kg2 {[%emt 0:00:07]} Nh4+ {[%emt 0:01:02]} 36. Kg3 {[%emt 0:01:02]} dxc4 {[%emt 0:00:05]} 0-1

[Event "29. Klatovy A 2023"]
[Site "Klatovy"]
[Date "2023.07.03"]
[Round "3.13"]
[White "Lhotsky, Zdenek"]
[Black "Jordanov, Mihail"]
[Result "0-1"]
[ECO "C86"]
[WhiteElo "1840"]
[BlackElo "2140"]
[PlyCount "64"]
[EventDate "2023.07.01"]
[EventType "swiss"]
[EventRounds "9"]
[EventCountry "CZE"]
[TimeControl "120+30"]

1. e4 {[%emt 0:12:39]} e5 {[%emt 0:00:09]} 2. Nf3 {[%emt 0:00:07]} Nc6 {[%emt 0:00:07]} 3. Bb5 {[%emt 0:00:13]} a6 {[%emt 0:00:14]} 4. Ba4 {[%emt 0:00:05]} Nf6 {[%emt 0:00:24]} 5. Qe2 {[%emt 0:00:23]} b5 {[%emt 0:01:17]} 6. Bb3 {[%emt 0:00:08]} Be7 {[%emt 0:00:30]} 7. c3 {[%emt 0:01:27]} O-O {[%emt 0:01:26]} 8. O-O {[%emt 0:01:28]} d6 {[%emt 0:02:03]} 9. Rd1 {[%emt 0:01:24]} Na5 {[%emt 0:02:20]} 10. Bc2 {[%emt 0:01:33]} c5 {[%emt 0:00:17]} 11. d4 {[%emt 0:01:34]} Qc7 {[%emt 0:00:59]} 12. d5 {[%emt 0:03:14]} Bd7 {[%emt 0:01:15]} 13. b3 {[%emt 0:03:14]} Ne8 {[%emt 0:04:31]} 14. a4 {[%emt 0:05:45]} b4 {[%emt 0:22:49]} 15. Bd2 {[%emt 0:17:43]} bxc3 {[%emt 0:04:24]} 16. Bxc3 {[%emt 0:00:22]} g6 {[%emt 0:00:51]} 17. Na3 {[%emt 0:05:01]} Ng7 {[%emt 0:02:59]} 18. Qd2 {[%emt 0:05:13]} Nb7 {[%emt 0:01:16]} 19. Nc4 {[%emt 0:00:39]} Qd8 {[%emt 0:01:04]} 20. Qh6 {[%emt 0:07:42]} f5 {[%emt 0:18:54]} 21. h4 {[%emt 0:34:01]} fxe4 {[%emt 0:12:00]} 22. Bxe4 {[%emt 0:00:29]} Nf5 {[%emt 0:01:27]} 23. Bxf5 {[%emt 0:00:29]} Rxf5 {[%emt 0:00:36]} 24. Nfxe5 {[%emt 0:01:36]} dxe5 {[%emt 0:02:38]} 25. g4 {[%emt 0:00:28]} Rf3 {[%emt 0:09:28]} 26. Bxe5 {[%emt 0:00:55]} Bf8 {[%emt 0:00:30]} 27. Qd2 {[%emt 0:01:59]} Qxh4 {[%emt 0:01:08]} 28. Ne3 {[%emt 0:00:49]} Re8 {[%emt 0:06:44]} 29. Bg3 {[%emt 0:00:42]} Rxg3+ {[%emt 0:01:12]} 30. fxg3 {[%emt 0:00:07]} Qxg3+ {[%emt 0:00:10]} 31. Ng2 {[%emt 0:00:02]} Bg7 {[%emt 0:04:12]} 32. Rac1 {[%emt 0:00:32]} Bd4+ {[%emt 0:00:14]} 0-1

[Event "29. Klatovy A 2023"]
[Site "Klatovy"]
[Date "2023.07.03"]
[Round "3.14"]
[White "Folk, Petr"]
[Black "Polak, Michal 2002"]
[Result "0-1"]
[ECO "C56"]
[WhiteElo "2135"]
[BlackElo "1959"]
[PlyCount "86"]
[EventDate "2023.07.01"]
[EventType "swiss"]
[EventRounds "9"]
[EventCountry "CZE"]
[TimeControl "120+30"]

1. e4 {[%emt 0:00:03]} e5 {[%emt 0:00:05]} 2. Nf3 {[%emt 0:00:05]} Nc6 {[%emt 0:00:05]} 3. d4 {[%emt 0:00:11]} exd4 {[%emt 0:00:15]} 4. Bc4 {[%emt 0:00:08]} Nf6 {[%emt 0:00:19]} 5. e5 {[%emt 0:00:16]} d5 {[%emt 0:00:05]} 6. Bb5 {[%emt 0:00:07]} Ne4 {[%emt 0:00:07]} 7. Nxd4 {[%emt 0:00:07]} Bd7 {[%emt 0:00:07]} 8. Bxc6 {[%emt 0:00:09]} bxc6 {[%emt 0:00:05]} 9. O-O {[%emt 0:00:19]} Bc5 {[%emt 0:00:09]} 10. f3 {[%emt 0:00:39]} Ng5 {[%emt 0:00:13]} 11. f4 {[%emt 0:00:08]} Ne4 {[%emt 0:00:08]} 12. Be3 {[%emt 0:00:06]} O-O {[%emt 0:00:42]} 13. Nd2 {[%emt 0:01:19]} Nxd2 {[%emt 0:01:16]} 14. Qxd2 {[%emt 0:02:31]} Qe7 {[%emt 0:01:22]} 15. Nb3 {[%emt 0:04:49]} Bb6 {[%emt 0:00:58]} 16. Qc3 {[%emt 0:11:55]} f6 {[%emt 0:00:58]} 17. Bc5 {[%emt 0:04:33]} fxe5 {[%emt 0:02:06]} 18. fxe5 {[%emt 0:00:33]} Rxf1+ {[%emt 0:00:26]} 19. Rxf1 {[%emt 0:00:38]} Rf8 {[%emt 0:00:22]} 20. Rxf8+ {[%emt 0:26:17]} Qxf8 {[%emt 0:00:15]} 21. Qd4 {[%emt 0:01:47]} Qf5 {[%emt 0:12:14]} 22. Qf2 {[%emt 0:02:53]} Kf7 {[%emt 0:09:56]} 23. a4 {[%emt 0:03:51]} Qxf2+ {[%emt 0:15:13]} 24. Kxf2 {[%emt 0:14:42]} a5 {[%emt 0:14:43]} 25. Ke3 {[%emt 0:06:16]} Ke6 {[%emt 0:16:23]} 26. Kd4 {[%emt 0:04:39]} Be8 {[%emt 0:01:14]} 27. Nd2 {[%emt 0:10:24]} Bg6 {[%emt 0:15:09]} 28. c3 {[%emt 0:01:46]} Bc2 {[%emt 0:03:24]} 29. Nf3 {[%emt 0:01:58]} h6 {[%emt 0:01:53]} 30. Ne1 {[%emt 0:02:21]} Bxa4 {[%emt 0:03:36]} 31. b4 {[%emt 0:03:23]} Bb5 {[%emt 0:03:09]} 32. bxa5 {[%emt 0:01:06]} Bxa5 {[%emt 0:00:05]} 33. Nd3 {[%emt 0:02:51]} Bxd3 {[%emt 0:11:05]} 34. Kxd3 {[%emt 0:00:01]} Bb6 {[%emt 0:00:21]} 35. Bf8 {[%emt 0:00:54]} Kf7 {[%emt 0:00:07]} 36. Ba3 {[%emt 0:00:23]} Bg1 {[%emt 0:03:32]} 37. h3 {[%emt 0:00:36]} c5 {[%emt 0:00:36]} 38. Bc1 {[%emt 0:01:04]} Ke6 {[%emt 0:01:39]} 39. Bf4 {[%emt 0:00:35]} c4+ {[%emt 0:00:31]} 40. Ke2 {[%emt 0:00:32]} Bb6 {[%emt 0:00:25]} 41. Kf3 {[%emt 0:00:51]} c6 {[%emt 0:01:45]} 42. h4 {[%emt 0:01:58]} h5 {[%emt 0:01:08]} 43. g4 {[%emt 0:00:20]} g6 {[%emt 0:00:42]} 0-1

[Event "29. Klatovy A 2023"]
[Site "Klatovy"]
[Date "2023.07.03"]
[Round "3.15"]
[White "Ret, Adam Josef"]
[Black "Mametev, Artem"]
[Result "1-0"]
[ECO "E67"]
[WhiteElo "2133"]
[BlackElo "1991"]
[PlyCount "173"]
[EventDate "2023.07.01"]
[EventType "swiss"]
[EventRounds "9"]
[EventCountry "CZE"]
[TimeControl "120+30"]

1. c4 {[%emt 0:00:01]} Nf6 {[%emt 0:00:04]} 2. g3 {[%emt 0:00:03]} g6 {[%emt 0:00:06]} 3. Bg2 {[%emt 0:00:04]} Bg7 {[%emt 0:00:08]} 4. Nc3 {[%emt 0:00:49]} O-O {[%emt 0:00:11]} 5. Nf3 {[%emt 0:00:04]} d6 {[%emt 0:00:05]} 6. d4 {[%emt 0:00:11]} Nbd7 {[%emt 0:00:21]} 7. O-O {[%emt 0:00:07]} e5 {[%emt 0:00:05]} 8. e3 {[%emt 0:00:07]} c6 {[%emt 0:01:24]} 9. b3 {[%emt 0:00:29]} Re8 {[%emt 0:00:20]} 10. Bb2 {[%emt 0:00:39]} Qe7 {[%emt 0:04:59]} 11. Qc2 {[%emt 0:01:45]} a6 {[%emt 0:01:21]} 12. Ba3 {[%emt 0:07:17]} Rb8 {[%emt 0:23:37]} 13. Rad1 {[%emt 0:11:45]} c5 {[%emt 0:00:44]} 14. dxe5 {[%emt 0:01:41]} Nxe5 {[%emt 0:01:10]} 15. Nxe5 {[%emt 0:02:28]} Qxe5 {[%emt 0:00:11]} 16. Bb2 {[%emt 0:02:36]} Qe7 {[%emt 0:22:50]} 17. Rd2 {[%emt 0:18:35]} Bf5 {[%emt 0:04:50]} 18. Qd1 {[%emt 0:01:58]} Rbd8 {[%emt 0:02:34]} 19. Qa1 {[%emt 0:01:28]} Be6 {[%emt 0:16:40]} 20. Ne2 {[%emt 0:13:35]} Nh5 {[%emt 0:03:36]} 21. Bxg7 {[%emt 0:05:48]} Nxg7 {[%emt 0:00:07]} 22. Bf3 {[%emt 0:02:20]} b5 {[%emt 0:03:02]} 23. cxb5 {[%emt 0:02:06]} axb5 {[%emt 0:00:06]} 24. Nc3 {[%emt 0:00:34]} b4 {[%emt 0:02:04]} 25. Ne4 {[%emt 0:04:21]} Kh8 {[%emt 0:02:53]} 26. Rfd1 {[%emt 0:01:15]} Bg4 {[%emt 0:03:12]} 27. Bxg4 {[%emt 0:11:44]} Qxe4 {[%emt 0:00:05]} 28. Bh3 {[%emt 0:00:43]} Qe7 {[%emt 0:01:15]} 29. a3 {[%emt 0:00:39]} bxa3 {[%emt 0:01:14]} 30. Qxa3 {[%emt 0:02:19]} Ne6 {[%emt 0:04:58]} 31. Qa6 {[%emt 0:01:39]} Ng5 {[%emt 0:00:35]} 32. Bg2 {[%emt 0:00:34]} Ne4 {[%emt 0:01:26]} 33. Bxe4 {[%emt 0:01:13]} Qxe4 {[%emt 0:00:03]} 34. Rxd6 {[%emt 0:00:12]} Rxd6 {[%emt 0:00:40]} 35. Qxd6 {[%emt 0:00:09]} c4 {[%emt 0:03:03]} 36. bxc4 {[%emt 0:03:45]} Qxc4 {[%emt 0:00:09]} 37. Qd4+ {[%emt 0:06:21]} Qxd4 {[%emt 0:00:05]} 38. exd4 {[%emt 0:00:04]} Kg7 {[%emt 0:01:46]} 39. Kg2 {[%emt 0:01:13]} Kf6 {[%emt 0:01:25]} 40. Rd3 {[%emt 0:00:22]} Ra8 {[%emt 0:03:18]} 41. Kf3 {[%emt 0:00:20]} Ke6 {[%emt 0:01:12]} 42. Re3+ {[%emt 0:06:18]} Kd6 {[%emt 0:00:57]} 43. g4 {[%emt 0:03:11]} Ra4 {[%emt 0:02:12]} 44. Ke4 {[%emt 0:00:31]} f5+ {[%emt 0:01:08]} 45. gxf5 {[%emt 0:00:09]} gxf5+ {[%emt 0:00:04]} 46. Kxf5 {[%emt 0:00:43]} Rxd4 {[%emt 0:00:36]} 47. Rh3 {[%emt 0:00:46]} Rd5+ {[%emt 0:01:51]} 48. Kg4 {[%emt 0:00:48]} Ke6 {[%emt 0:00:45]} 49. Rxh7 {[%emt 0:00:11]} Kf6 {[%emt 0:00:10]} 50. f4 {[%emt 0:00:34]} Kg6 {[%emt 0:02:52]} 51. Rc7 {[%emt 0:00:22]} Rg5+ {[%emt 0:00:29]} 52. Kf3 {[%emt 0:03:01]} Rb5 {[%emt 0:00:44]} 53. Rc8 {[%emt 0:01:55]} Kf5 {[%emt 0:02:34]} 54. Rf8+ {[%emt 0:00:14]} Kg6 {[%emt 0:00:03]} 55. Kg4 {[%emt 0:01:15]} Rb2 {[%emt 0:03:47]} 56. h3 {[%emt 0:02:45]} Rg2+ {[%emt 0:00:44]} 57. Kf3 {[%emt 0:00:08]} Ra2 {[%emt 0:00:25]} 58. Rg8+ {[%emt 0:03:51]} Kf6 {[%emt 0:01:26]} 59. Rg2 {[%emt 0:00:47]} Ra3+ {[%emt 0:01:21]} 60. Kg4 {[%emt 0:00:03]} Ra7 {[%emt 0:00:28]} 61. Rd2 {[%emt 0:01:00]} Rg7+ {[%emt 0:00:17]} 62. Kf3 {[%emt 0:00:08]} Rh7 {[%emt 0:00:35]} 63. Rh2 {[%emt 0:01:49]} Kf5 {[%emt 0:01:07]} 64. h4 {[%emt 0:00:18]} Ra7 {[%emt 0:00:34]} 65. Re2 {[%emt 0:00:02]} Ra1 {[%emt 0:02:12]} 66. Re5+ {[%emt 0:01:40]} Kf6 {[%emt 0:00:07]} 67. Kg4 {[%emt 0:00:30]} Rg1+ {[%emt 0:01:06]} 68. Kh5 {[%emt 0:00:01]} Rf1 {[%emt 0:00:54]} 69. Re4 {[%emt 0:01:25]} Kf5 {[%emt 0:00:17]} 70. Re8 {[%emt 0:00:34]} Kf6 {[%emt 0:03:20]} 71. Kh6 {[%emt 0:00:21]} Kf7 {[%emt 0:00:48]} 72. Re4 {[%emt 0:00:04]} Rb1 {[%emt 0:02:12]} 73. h5 {[%emt 0:00:21]} Kf6 {[%emt 0:00:47]} 74. Ra4 {[%emt 0:00:33]} Rb6 {[%emt 0:00:08]} 75. Ra5 {[%emt 0:00:20]} Rb7 {[%emt 0:01:07]} 76. Rg5 {[%emt 0:01:08]} Rb4 {[%emt 0:00:36]} 77. Rg8 {[%emt 0:01:24]} Kf7 {[%emt 0:00:20]} 78. Rg4 {[%emt 0:00:06]} Kf6 {[%emt 0:00:20]} 79. Kh7 {[%emt 0:00:48]} Kf5 {[%emt 0:00:31]} 80. Rg7 {[%emt 0:01:24]} Kxf4 {[%emt 0:00:42]} 81. h6 {[%emt 0:00:32]} Kf5 {[%emt 0:00:31]} 82. Rf7+ {[%emt 0:00:28]} Ke6 {[%emt 0:00:16]} 83. Kg7 {[%emt 0:00:12]} Rg4+ {[%emt 0:00:32]} 84. Kf8 {[%emt 0:00:09]} Rh4 {[%emt 0:00:27]} 85. h7 {[%emt 0:00:02]} Rh1 {[%emt 0:01:40]} 86. Kg8 {[%emt 0:00:26]} Rh2 {[%emt 0:00:44]} 87. Rg7 {[%emt 0:00:10]} 1-0

[Event "29. Klatovy A 2023"]
[Site "Klatovy"]
[Date "2023.07.03"]
[Round "3.16"]
[White "Pycha, Patrik"]
[Black "Roubal, Matyas"]
[Result "1-0"]
[ECO "B31"]
[WhiteElo "2058"]
[BlackElo "1886"]
[PlyCount "103"]
[EventDate "2023.07.01"]
[EventType "swiss"]
[EventRounds "9"]
[EventCountry "CZE"]
[TimeControl "120+30"]

1. e4 {[%emt 0:00:02]} c5 {[%emt 0:00:06]} 2. Nf3 {[%emt 0:00:06]} Nc6 {[%emt 0:00:09]} 3. Bb5 {[%emt 0:00:04]} g6 {[%emt 0:00:07]} 4. Bxc6 {[%emt 0:00:05]} bxc6 {[%emt 0:00:09]} 5. O-O {[%emt 0:00:16]} Bg7 {[%emt 0:00:11]} 6. Re1 {[%emt 0:00:13]} Nh6 {[%emt 0:00:43]} 7. c3 {[%emt 0:00:39]} O-O {[%emt 0:00:19]} 8. d4 {[%emt 0:00:20]} cxd4 {[%emt 0:00:09]} 9. cxd4 {[%emt 0:00:06]} d5 {[%emt 0:00:22]} 10. e5 {[%emt 0:01:36]} f6 {[%emt 0:00:28]} 11. e6 {[%emt 0:02:03]} Nf5 {[%emt 0:04:20]} 12. Nc3 {[%emt 0:02:13]} Nd6 {[%emt 0:02:40]} 13. b3 {[%emt 0:02:19]} f5 {[%emt 0:18:23]} 14. Ne5 {[%emt 0:12:36]} Qe8 {[%emt 0:03:36]} 15. Na4 {[%emt 0:02:20]} Nb7 {[%emt 0:09:45]} 16. Ba3 {[%emt 0:03:54]} Bxe6 {[%emt 0:03:27]} 17. Rc1 {[%emt 0:03:47]} Rc8 {[%emt 0:02:07]} 18. Nf3 {[%emt 0:02:08]} Nd8 {[%emt 0:01:13]} 19. Rc2 {[%emt 0:17:36]} Rf6 {[%emt 0:08:30]} 20. Qc1 {[%emt 0:02:38]} Rc7 {[%emt 0:03:59]} 21. Rce2 {[%emt 0:00:37]} Bf8 {[%emt 0:04:12]} 22. Qf4 {[%emt 0:01:40]} Qd7 {[%emt 0:02:30]} 23. Nc5 {[%emt 0:01:28]} Qc8 {[%emt 0:01:26]} 24. Nxe6 {[%emt 0:00:19]} Nxe6 {[%emt 0:00:45]} 25. Rxe6 {[%emt 0:00:09]} Rxe6 {[%emt 0:00:02]} 26. Rxe6 {[%emt 0:00:08]} Qxe6 {[%emt 0:00:04]} 27. Qxc7 {[%emt 0:00:07]} Qe2 {[%emt 0:00:03]} 28. Qe5 {[%emt 0:01:14]} Qxa2 {[%emt 0:00:06]} 29. Qe6+ {[%emt 0:01:06]} Kg7 {[%emt 0:01:31]} 30. Bc5 {[%emt 0:00:09]} Qxb3 {[%emt 0:00:55]} 31. h4 {[%emt 0:00:18]} Qb1+ {[%emt 0:00:31]} 32. Kh2 {[%emt 0:00:08]} Qe4 {[%emt 0:00:03]} 33. Qxc6 {[%emt 0:03:47]} Qf4+ {[%emt 0:04:41]} 34. Kh1 {[%emt 0:00:16]} Qc1+ {[%emt 0:00:03]} 35. Ng1 {[%emt 0:00:07]} Qf4 {[%emt 0:00:08]} 36. g3 {[%emt 0:05:06]} Qxf2 {[%emt 0:00:32]} 37. Qc7 {[%emt 0:01:40]} Kf7 {[%emt 0:01:47]} 38. Qe5 {[%emt 0:02:15]} Ke8 {[%emt 0:01:09]} 39. Bxa7 {[%emt 0:00:53]} Bh6 {[%emt 0:00:42]} 40. Bc5 {[%emt 0:00:32]} Bf8 {[%emt 0:00:57]} 41. Ba3 {[%emt 0:12:19]} Qa2 {[%emt 0:02:22]} 42. Bc1 {[%emt 0:01:24]} Kf7 {[%emt 0:02:42]} 43. Nf3 {[%emt 0:01:14]} h6 {[%emt 0:04:52]} 44. h5 {[%emt 0:01:15]} Qb3 {[%emt 0:00:49]} 45. hxg6+ {[%emt 0:00:26]} Ke8 {[%emt 0:00:05]} 46. Qe2 {[%emt 0:02:44]} Qb1 {[%emt 0:00:23]} 47. Qd1 {[%emt 0:04:44]} Qe4 {[%emt 0:00:44]} 48. Bf4 {[%emt 0:00:23]} e5 {[%emt 0:02:30]} 49. Bxe5 {[%emt 0:01:01]} Ke7 {[%emt 0:00:32]} 50. g7 {[%emt 0:00:38]} Qg4 {[%emt 0:00:04]} 51. gxf8=Q+ {[%emt 0:00:25]} Kxf8 {[%emt 0:00:05]} 52. Kg2 {[%emt 0:00:10]} 1-0

[Event "29. Klatovy A 2023"]
[Site "Klatovy"]
[Date "2023.07.03"]
[Round "3.17"]
[White "Stary, Vojtech"]
[Black "Pecka, Jan"]
[Result "1-0"]
[ECO "B33"]
[WhiteElo "1822"]
[BlackElo "2054"]
[PlyCount "71"]
[EventDate "2023.07.01"]
[EventType "swiss"]
[EventRounds "9"]
[EventCountry "CZE"]
[TimeControl "120+30"]

1. e4 {[%emt 0:00:02]} c5 {[%emt 0:00:03]} 2. Nf3 {[%emt 0:00:07]} Nc6 {[%emt 0:00:10]} 3. d4 {[%emt 0:00:20]} cxd4 {[%emt 0:00:03]} 4. Nxd4 {[%emt 0:00:06]} Nf6 {[%emt 0:00:03]} 5. Nc3 {[%emt 0:00:13]} e5 {[%emt 0:00:05]} 6. Ndb5 {[%emt 0:00:07]} d6 {[%emt 0:00:16]} 7. Bg5 {[%emt 0:00:15]} a6 {[%emt 0:00:05]} 8. Na3 {[%emt 0:00:05]} b5 {[%emt 0:00:03]} 9. Nd5 {[%emt 0:00:20]} Be7 {[%emt 0:00:03]} 10. Bxf6 {[%emt 0:00:18]} Bxf6 {[%emt 0:00:06]} 11. c3 {[%emt 0:00:21]} O-O {[%emt 0:00:07]} 12. Nc2 {[%emt 0:00:07]} Rb8 {[%emt 0:00:04]} 13. a4 {[%emt 0:07:26]} bxa4 {[%emt 0:00:41]} 14. Rxa4 {[%emt 0:01:47]} a5 {[%emt 0:01:04]} 15. b4 {[%emt 0:03:46]} axb4 {[%emt 0:03:18]} 16. cxb4 {[%emt 0:01:59]} Bg5 {[%emt 0:02:30]} 17. Be2 {[%emt 0:03:46]} Kh8 {[%emt 0:00:40]} 18. O-O {[%emt 0:01:44]} f5 {[%emt 0:00:16]} 19. b5 {[%emt 0:02:27]} Ne7 {[%emt 0:01:45]} 20. Ncb4 {[%emt 0:05:01]} Bb7 {[%emt 0:04:41]} 21. Nxe7 {[%emt 0:02:19]} Bxe7 {[%emt 0:04:08]} 22. Nc6 {[%emt 0:04:12]} Bxc6 {[%emt 0:00:07]} 23. bxc6 {[%emt 0:00:07]} Rb2 {[%emt 0:02:01]} 24. exf5 {[%emt 0:04:10]} d5 {[%emt 0:00:56]} 25. Ba6 {[%emt 0:06:35]} Rb6 {[%emt 0:06:34]} 26. Bb7 {[%emt 0:01:33]} d4 {[%emt 0:05:19]} 27. Ra8 {[%emt 0:04:30]} Qc7 {[%emt 0:01:13]} 28. Qa4 {[%emt 0:02:14]} Rxb7 {[%emt 0:09:24]} 29. cxb7 {[%emt 0:01:02]} Qxb7 {[%emt 0:00:07]} 30. Rxf8+ {[%emt 0:01:46]} Bxf8 {[%emt 0:00:04]} 31. Qe8 {[%emt 0:01:10]} Qe7 {[%emt 0:03:36]} 32. Qxe7 {[%emt 0:00:27]} Bxe7 {[%emt 0:00:00]} 33. Re1 {[%emt 0:01:33]} Bf6 {[%emt 0:01:31]} 34. f4 {[%emt 0:00:32]} e4 {[%emt 0:00:23]} 35. Rxe4 {[%emt 0:00:19]} Kg8 {[%emt 0:00:14]} 36. g4 {[%emt 0:01:21]} 1-0

[Event "29. Klatovy A 2023"]
[Site "Klatovy"]
[Date "2023.07.03"]
[Round "3.18"]
[White "Zhang, Michelle 2013"]
[Black "Novotny, David"]
[Result "1/2-1/2"]
[ECO "B34"]
[WhiteElo "1724"]
[BlackElo "2034"]
[PlyCount "60"]
[EventDate "2023.07.01"]
[EventType "swiss"]
[EventRounds "9"]
[EventCountry "CZE"]
[TimeControl "120+30"]

1. e4 {[%emt 0:00:02]} c5 {[%emt 0:00:06]} 2. Nf3 {[%emt 0:00:14]} Nc6 {[%emt 0:00:06]} 3. d4 {[%emt 0:00:43]} cxd4 {[%emt 0:00:00]} 4. Nxd4 {[%emt 0:00:23]} g6 {[%emt 0:00:15]} 5. Nc3 {[%emt 0:01:48]} Bg7 {[%emt 0:00:27]} 6. Be3 {[%emt 0:00:48]} Nf6 {[%emt 0:00:22]} 7. Be2 {[%emt 0:02:07]} O-O {[%emt 0:01:08]} 8. O-O {[%emt 0:00:00]} d5 {[%emt 0:01:07]} 9. exd5 {[%emt 0:00:00]} Nb4 {[%emt 0:05:30]} 10. Qd2 {[%emt 0:00:00]} Nbxd5 {[%emt 0:10:47]} 11. Nxd5 Nxd5 12. Rad1 Nxe3 {[%emt 0:00:00]} 13. Qxe3 {[%emt 0:00:00]} Qb6 {[%emt 0:14:44]} 14. b3 {[%emt 0:00:00]} a6 {[%emt 1:03:53]} 15. c4 {[%emt 0:00:00]} Qf6 {[%emt 0:42:17]} 16. Bf3 Rb8 17. Rfe1 Rd8 18. Nc2 Rxd1 19. Rxd1 Be6 20. Nb4 Qc3 21. Qxc3 Bxc3 22. Nd5 Bxd5 23. Rxd5 Kf8 24. Rd7 b6 {[%emt 0:00:00]} 25. Kf1 {[%emt 0:00:00]} a5 {[%emt 0:44:01]} 26. Ke2 {[%emt 0:01:02]} Rc8 {[%emt 0:01:33]} 27. Kd3 {[%emt 0:01:02]} Be1 {[%emt 0:00:28]} 28. Ke2 {[%emt 0:00:24]} Bb4 {[%emt 0:00:40]} 29. h4 {[%emt 0:00:00]} Ke8 {[%emt 0:00:00]} 30. Rd5 {[%emt 0:00:00]} Rd8 {[%emt 0:00:00]} 1/2-1/2

[Event "29. Klatovy A 2023"]
[Site "Klatovy"]
[Date "2023.07.01"]
[Round "1.18"]
[White "Folk, Petr"]
[Black "Roubal, Matyas"]
[Result "1/2-1/2"]
[ECO "B35"]
[WhiteElo "2135"]
[BlackElo "1886"]
[PlyCount "105"]
[EventDate "2023.07.01"]
[EventType "swiss"]
[EventRounds "9"]
[EventCountry "CZE"]
[TimeControl "120+30"]

1. e4 {[%emt 0:02:15]} c5 {[%emt 0:00:05]} 2. Nf3 {[%emt 0:00:44]} Nc6 {[%emt 0:00:04]} 3. d4 {[%emt 0:00:27]} cxd4 {[%emt 0:00:04]} 4. Nxd4 {[%emt 0:00:00]} g6 {[%emt 0:00:06]} 5. Nc3 {[%emt 0:00:00]} Bg7 {[%emt 0:01:29]} 6. Be3 {[%emt 0:00:00]} Nf6 {[%emt 0:00:00]} 7. Bc4 {[%emt 0:00:00]} O-O {[%emt 0:00:00]} 8. Bb3 {[%emt 0:00:00]} Re8 {[%emt 0:00:00]} 9. O-O {[%emt 0:00:00]} d6 {[%emt 0:00:00]} 10. h3 {[%emt 0:00:00]} Na5 {[%emt 0:00:00]} 11. f4 {[%emt 0:00:00]} Nxb3 {[%emt 0:00:00]} 12. axb3 {[%emt 0:00:00]} b6 {[%emt 0:00:00]} 13. Nf3 {[%emt 0:00:00]} Bb7 {[%emt 0:00:00]} 14. Qd3 {[%emt 0:00:00]} e5 {[%emt 0:00:00]} 15. fxe5 {[%emt 0:00:00]} dxe5 {[%emt 0:00:00]} 16. Qxd8 {[%emt 0:00:00]} Rexd8 {[%emt 0:00:00]} 17. Nxe5 {[%emt 0:00:00]} Re8 {[%emt 0:00:00]} 18. Nc4 {[%emt 0:00:00]} Nxe4 {[%emt 0:00:00]} 19. Nb5 {[%emt 0:00:00]} Be5 {[%emt 0:00:00]} 20. Nxe5 {[%emt 0:00:00]} Rxe5 {[%emt 0:00:00]} 21. Rxa7 Rxa7 22. Nxa7 Ng3 23. Re1 Nf5 24. Bf2 Rxe1+ 25. Bxe1 Ne3 26. c4 Nxg2 27. Bf2 Nf4 28. Kh2 Kf8 29. Bxb6 Ke7 30. Nb5 Nd3 31. Bd4 f5 32. Nc3 f4 33. h4 Ke6 34. Nd1 Kf5 35. Nf2 Nxf2 36. Bxf2 Ke4 37. b4 Kd3 38. b3 Ke2 39. Kg1 h6 40. b5 g5 41. hxg5 hxg5 42. c5 g4 43. c6 Ba8 44. Kg2 g3 45. Bg1 Kd3 46. Kf3 Kc3 47. Kxf4 Kb4 48. c7 Bb7 49. b6 Kb5 50. Kxg3 Kc6 51. Kf4 Bc8 52. Ke5 Kb7 53. Kd6 1/2-1/2